bitfinex/quotes_ETHUSD_20260107
["timestamp","ask_amount","ask_price","bid_price","bid_amount"]
[1767779878052,3.95698547,3200.1,3199.3,3.66567102]
[1767779878551,0.001,3199.8,3199.3,3.66567102]
[1767779879175,0.001,3199.8,3199.2,0.002]
[1767779879381,3.95698547,3199.8,3199.2,0.002]
[1767779879753,0.09428432,3199.3,3199.2,0.002]
[1767779880485,0.001,3199.8,3199.2,3.66767102]
[1767779880786,0.001,3199.8,3199.3,0.3667671]
[1767779881154,0.001,3199.8,3199.3,4.03243812]
[1767779885090,3.87289811,3199.8,3199.3,0.3667671]
[1767779885392,3.87289811,3199.8,3199.2,0.002]
[1767779890403,0.19905029,3201.0,3199.5,3.66567102]
[1767779890404,3.87189811,3200.3,3199.5,3.66567102]
[1767779891563,3.87189811,3201.2,3199.5,3.66567102]
[1767779891784,3.87189811,3201.0,3199.5,3.66567102]
[1767779891968,3.87189811,3200.8,3199.9,3.66567102]
[1767779896198,3.87189811,3200.8,3199.6,0.3665671]
[1767779896502,3.87189811,3200.8,3199.6,4.03223812]
[1767779897375,3.87189811,3200.8,3199.6,0.3665671]
[1767779897589,3.87189811,3200.6,3199.3,3.66567102]
[1767779897893,3.87189811,3200.6,3199.2,0.002]
[1767779898093,3.87189811,3200.6,3199.2,3.29]
[1767779898405,3.87189811,3200.6,3199.2,3.66767102]
[1767779900175,3.87189811,3200.6,3199.2,0.002]
[1767779900375,3.87189811,3200.4,3199.2,0.002]
[1767779901198,3.87189811,3200.4,3199.2,3.66767102]
[1767779902801,3.87189811,3200.2,3199.2,3.66767102]
[1767779909707,0.001,3200.3,3199.3,3.66567102]
[1767779910022,3.87289811,3200.3,3199.3,3.66567102]
[1767779910828,3.87289811,3200.3,3199.4,4.43669828]
[1767779911519,3.87289811,3200.3,3199.4,3.66567102]
[1767779912595,3.87289811,3200.3,3199.3,0.77555106]
[1767779914425,3.87289811,3200.3,3199.5,0.002]
[1767779914806,3.92485428,3200.0,3199.5,0.002]
[1767779917752,0.001,3200.1,3199.5,3.60963718]
[1767779917945,0.001,3200.1,3199.6,0.36096372]
[1767779919237,0.001,3200.1,3199.2,0.002]
[1767779919238,3.92585428,3200.1,3199.2,0.002]
[1767779919950,0.09720087,3199.6,3199.2,0.002]
[1767779921220,0.09720087,3199.6,3199.2,3.60963718]
[1767779927979,0.09720087,3199.6,3199.5,0.002]
[1767779935301,3.92485428,3200.0,3199.5,0.002]
[1767779938411,0.001,3200.1,3199.5,0.002]
[1767779938908,3.92585428,3200.1,3199.5,0.002]
[1767779939321,3.92585428,3200.1,3199.5,0.36296372]
[1767779939603,3.88920234,3200.3,3199.5,4.02863474]
[1767779939833,3.88920234,3200.3,3199.6,4.7694523]
[1767779940010,0.001,3200.3,3199.6,4.7694523]
[1767779940197,0.001,3200.3,3199.8,3.99390124]
[1767779940402,3.88820234,3200.9,3200.1,3.99390124]
[1767779940811,0.001,3202.0,3200.1,3.99390124]
[1767779941012,3.88820234,3201.9,3200.1,3.99390124]
[1767779941216,3.88820234,3201.7,3200.1,3.99390124]
[1767779941439,3.88820234,3201.5,3200.2,4.39329136]
[1767779941607,3.88820234,3201.3,3200.2,4.39329136]
[1767779942406,3.63248085,3201.1,3200.0,3.73391155]
[1767779944616,3.63248085,3200.9,3199.8,3.73391155]
[1767779946548,0.40872429,3201.6,3200.0,3.73391155]
[1767779946549,3.67152504,3201.5,3200.0,3.73391155]
[1767779946752,3.63248085,3201.5,3200.0,3.73391155]
[1767779947046,3.63248085,3201.5,3200.2,3.73391155]
[1767779947251,3.63248085,3201.5,3200.4,3.73391155]
[1767779947562,3.63248085,3201.5,3200.3,0.45094626]
[1767779947563,3.63248085,3201.5,3200.3,4.18485781]
[1767779948555,3.63248085,3201.5,3200.5,3.73391155]
[1767779948846,3.63248085,3201.5,3200.4,1.03507362]
[1767779949551,3.63248085,3201.5,3200.4,4.76898517]
[1767779949850,3.63248085,3201.5,3200.5,0.52199314]
[1767779950220,3.63248085,3201.5,3200.6,0.25952256]
[1767779950420,3.63248085,3201.5,3200.6,3.99343411]
[1767779951249,0.001,3201.2,3200.6,3.99343411]
[1767779952853,3.63248085,3201.9,3200.6,3.99343411]
[1767779953036,3.63248085,3201.9,3200.8,3.73391155]
[1767779953248,3.63248085,3201.9,3200.9,0.25952256]
[1767779953461,3.63248085,3201.9,3200.9,3.99343411]
[1767779957775,3.63248085,3201.9,3200.9,3.99143412]
[1767779958582,3.63248085,3201.9,3201.0,3.73391155]
[1767779959147,3.99582894,3201.9,3201.0,3.73391155]
[1767779959381,3.63248085,3201.9,3201.0,3.73391155]
[1767779960679,3.63248085,3201.9,3200.9,1.03307363]
[1767779960880,3.63248085,3201.7,3200.9,1e-08]
[1767779961258,3.63248085,3201.7,3199.7,3.73391155]
[1767779961259,4.09003462,3201.7,3199.7,3.73391155]
[1767779961469,3.63248085,3201.5,3199.7,3.73391155]
[1767779961777,3.63248085,3201.5,3199.5,0.002]
[1767779962853,3.63248085,3201.5,3199.4,0.25952256]
[1767779963060,3.63248085,3201.5,3199.4,3.73391155]
[1767779963579,3.63248085,3201.5,3199.5,3.73391155]
[1767779963778,3.63248085,3201.3,3199.6,0.37339116]
[1767779963964,3.63248085,3201.3,3199.6,4.10730271]
[1767779964372,3.63248085,3201.3,3199.6,4.09730271]
[1767779965078,3.63248085,3201.3,3199.6,0.36339116]
[1767779965273,3.63248085,3201.3,3199.4,3.73391155]
[1767779966177,3.63248085,3201.3,3199.5,3.73391155]
[1767779967887,3.63248085,3201.1,3199.5,3.73391155]
[1767779969788,3.63248085,3200.9,3199.5,3.73391155]
[1767779971091,3.63248085,3200.9,3199.2,4.16152256]
[1767779971396,3.63248085,3200.7,3199.4,3.99343411]
[1767779973493,3.63248085,3200.7,3199.5,3.9000001]
[1767779973687,3.89707884,3200.5,3199.5,3.9000001]
[1767779975512,3.89707884,3200.5,3199.7,3.9000001]
[1767779978413,3.89707884,3200.5,3199.4,7.8000001]
[1767779978611,3.89707884,3200.5,3199.5,0.82163524]
[1767779979082,3.89707884,3200.5,3199.5,0.25952256]
[1767779983527,3.89707884,3200.5,3199.5,4.15952266]
[1767779983698,3.89707884,3200.3,3199.5,4.15952266]
[1767779986348,3.89807884,3200.2,3199.5,4.15952266]
[1767779988142,3.89807884,3200.2,3199.4,0.25952256]
[1767779988452,3.89807884,3200.2,3199.5,0.41595227]
[1767779989854,3.89807884,3200.2,3199.2,0.002]
[1767779992622,3.89807884,3200.2,3199.3,3.9000001]
[1767779997949,3.89807884,3200.2,3199.5,0.002]
[1767779998145,0.001,3199.9,3199.5,0.002]
[1767779998940,4.83663889,3198.7,3198.1,0.003]
[1767779999230,4.28663889,3198.7,3198.1,0.003]
[1767780000365,4.28663889,3198.7,3197.9,0.005]
[1767780000553,3.68404062,3198.4,3196.4,3.96196397]
[1767780000896,3.68404062,3198.2,3196.9,4.04115724]
[1767780001054,3.68404062,3198.2,3196.8,0.816]
[1767780001254,3.68404062,3198.2,3196.8,4.77796397]
[1767780001666,3.68404062,3198.2,3196.8,0.816]
[1767780002283,3.68404062,3198.2,3196.2,6.42068772]
[1767780002284,3.84188166,3198.1,3196.3,3.66152069]
[1767780002476,3.84188166,3197.9,3196.4,0.69535207]
[1767780003782,0.78830389,3198.0,3195.8,0.816]
[1767780003783,3.84188166,3197.5,3195.8,0.816]
[1767780003987,3.84188166,3197.5,3196.5,7.70267793]
[1767780004179,3.84188166,3197.5,3195.8,10.73572937]
[1767780004496,3.84188166,3197.5,3196.1,0.25952256]
[1767780005581,3.84188166,3197.5,3196.2,0.25952256]
[1767780005767,3.84188166,3197.5,3196.3,0.39210433]
[1767780006686,3.84188166,3197.5,3195.8,7.60656012]
[1767780006867,3.84188166,3197.5,3195.9,6.79052728]
[1767780007067,3.84188166,3197.5,3195.9,6.79050204]
[1767780007265,3.84188166,3197.5,3196.0,0.25952256]
[1767780007472,3.84188166,3197.5,3196.0,3.66152069]
[1767780007669,3.84188166,3197.5,3196.1,0.36615207]
[1767780007870,3.84188166,3197.5,3195.8,4.47752069]
[1767780008399,3.84188166,3197.5,3195.8,0.816]
[1767780008694,3.84188166,3197.5,3195.5,0.66580579]
[1767780008900,3.84188166,3197.3,3195.5,0.66580579]
[1767780009210,3.84188166,3197.1,3195.5,0.66580579]
[1767780009493,3.84188166,3197.1,3195.7,3.66152069]
[1767780009656,3.84188166,3197.1,3195.8,0.25952256]
[1767780009856,3.84188166,3197.1,3195.5,4.32732648]
[1767780010065,3.84188166,3197.1,3196.2,0.002]
[1767780010286,3.84188166,3196.9,3196.2,0.002]
[1767780010693,3.84188166,3196.9,3195.9,0.002]
[1767780013416,3.84188166,3196.9,3195.9,3.66352069]
[1767780014589,3.84188166,3196.9,3195.7,3.3887091]
[1767780014756,3.84188166,3196.9,3195.6,3.92104325]
[1767780014964,3.84188166,3196.9,3195.7,0.77161845]
[1767780015475,3.84188166,3196.9,3195.5,0.66580579]
[1767780016369,3.84188166,3196.9,3195.5,4.32732648]
[1767780016598,3.84188166,3196.9,3195.6,3.92104325]
[1767780017391,0.0391016,3196.8,3195.6,3.92104325]
[1767780017698,3.84188166,3196.9,3195.6,3.92104325]
[1767780017900,3.84188166,3196.9,3195.8,3.66152069]
[1767780020077,0.0391016,3196.8,3195.8,3.66152069]
[1767780020487,3.84188166,3196.8,3195.5,4.32732648]
[1767780020674,3.88098326,3196.8,3195.5,0.66580579]
[1767780020877,4.26908159,3196.8,3195.5,0.66580579]
[1767780022381,4.26908159,3196.8,3196.1,0.002]
[1767780022694,4.26908159,3196.8,3195.8,0.002]
[1767780026475,3.84188166,3196.4,3195.8,0.002]
[1767780026688,3.88098815,3196.4,3195.8,0.002]
[1767780026971,4.67431022,3196.4,3195.8,0.002]
[1767780027172,4.67431022,3196.4,3195.5,0.66580579]
[1767780027173,4.67431022,3196.4,3195.5,0.55856258]
[1767780027376,3.84188166,3195.5,3193.9,3.292]
[1767780027572,3.84188166,3195.5,3191.5,4.14622969]
[1767780027573,3.84188166,3196.3,3194.5,3.66152069]
[1767780027793,3.84188166,3196.3,3194.8,3.66152069]
[1767780027994,3.84188166,3195.7,3194.6,0.47132152]
[1767780028371,3.84188166,3195.5,3194.6,0.47132152]
[1767780028574,0.4771476,3196.9,3194.6,4.13284221]
[1767780028575,3.84188166,3196.1,3194.6,4.13284221]
[1767780028903,4.63129308,3196.0,3194.7,4.07480491]
[1767780029405,3.84188166,3195.8,3194.5,0.25952256]
[1767780029578,3.84188166,3195.8,3194.4,4.48290097]
[1767780033312,3.90977665,3196.1,3194.5,4.01726256]
[1767780033513,3.90977665,3196.7,3194.5,4.01726256]
[1767780033809,3.90977665,3196.5,3194.7,4.01726256]
[1767780034012,0.03909304,3197.5,3194.7,4.01726256]
[1767780034013,3.90977665,3197.4,3194.7,4.01726256]
[1767780034182,0.809,3197.6,3194.7,4.01726256]
[1767780034183,3.90977665,3197.2,3195.5,0.25952256]
[1767780034384,3.94887458,3197.1,3195.6,3.75774]
[1767780034711,0.39488746,3197.0,3195.8,3.75774]
[1767780034917,0.03910037,3196.9,3195.8,3.75774]
[1767780035101,0.001,3196.5,3195.8,3.75774]
[1767780040295,0.001,3196.5,3195.7,0.375774]
[1767780041624,0.001,3196.5,3195.1,3.12977283]
[1767780041625,3.94888314,3196.4,3195.0,0.002]
[1767780041923,3.90977665,3196.2,3195.0,0.002]
[1767780042125,3.90977665,3196.0,3195.0,0.002]
[1767780046933,0.04010527,3196.5,3195.0,0.002]
[1767780046934,3.90977665,3196.4,3195.1,0.25952256]
[1767780047147,3.90977665,3196.4,3195.0,3.75974]
[1767780047148,0.03910771,3196.3,3195.2,4.15966626]
[1767780047529,3.94888436,3196.3,3195.2,4.15966626]
[1767780047947,0.001,3196.2,3195.2,4.15966626]
[1767780048653,3.91077665,3196.2,3195.2,4.15966626]
[1767780049153,0.001,3196.2,3195.3,3.75774]
[1767780049457,0.001,3196.2,3195.4,4.17370663]
[1767780050372,0.001,3196.5,3195.6,3.75774]
[1767780051387,3.90977665,3197.1,3195.6,3.12929359]
[1767780051557,4.30075432,3197.1,3195.9,3.75774]
[1767780051740,3.90977665,3197.1,3195.9,3.75774]
[1767780052074,3.90977665,3197.1,3196.0,4.01726256]
[1767780053196,3.90977665,3198.4,3196.2,3.75774]
[1767780053363,3.90977665,3198.2,3196.2,3.75774]
[1767780053683,0.809,3198.6,3196.2,3.75774]
[1767780053684,3.90977665,3198.0,3196.2,3.75774]
[1767780053888,3.90977665,3197.8,3196.3,0.68865532]
[1767780054103,3.90977665,3197.6,3195.7,0.33888162]
[1767780054306,0.809,3198.6,3195.7,0.33888162]
[1767780054307,3.90977665,3197.4,3195.7,0.25952256]
[1767780054582,3.90977665,3197.2,3195.7,0.25952256]
[1767780054784,3.90977665,3197.0,3195.7,0.25952256]
[1767780054965,3.90977665,3196.8,3195.3,3.75774]
[1767780055165,3.90977665,3196.8,3195.6,3.75774]
[1767780055363,0.03908692,3198.0,3196.0,4.01726256]
[1767780055364,3.90977665,3197.9,3196.0,4.01726256]
[1767780055575,0.03908815,3197.9,3196.0,4.01726256]
[1767780055770,0.03908937,3197.8,3196.0,4.01726256]
[1767780055967,3.90977665,3197.7,3196.2,4.01726256]
[1767780056274,0.809,3198.6,3196.2,4.01726256]
[1767780056275,3.94885746,3198.5,3196.2,4.01726256]
[1767780056991,3.90977665,3198.5,3196.2,7.30926256]
[1767780057166,3.90977665,3198.5,3197.1,3.75774]
[1767780057987,0.03908204,3198.4,3197.1,3.75774]
[1767780058169,0.39488587,3198.3,3197.1,3.75774]
[1767780058372,0.03908448,3198.2,3197.1,3.75774]
[1767780058677,3.94886113,3198.2,3196.8,0.25952256]
[1767780059178,3.94886113,3198.2,3196.9,0.25952256]
[1767780059699,3.94986113,3198.2,3196.9,0.25952256]
[1767780059884,4.38433583,3198.2,3197.0,0.40172626]
[1767780060102,4.38433583,3198.2,3197.0,4.09195016]
[1767780060291,0.001,3198.2,3197.2,3.6902239]
[1767780061315,4.00048541,3198.2,3196.3,3.6922239]
[1767780061486,0.0390857,3198.1,3196.4,3.6902239]
[1767780061684,4.08078863,3198.0,3196.5,4.44979824]
[1767780062289,3.67683152,3197.8,3196.3,0.002]
[1767780062593,3.67683152,3197.6,3196.3,0.002]
[1767780062790,3.67683152,3197.4,3196.3,0.002]
[1767780063000,3.67683152,3197.2,3196.3,0.002]
[1767780064297,3.67683152,3197.2,3196.0,0.002]
[1767780064491,3.67683152,3197.0,3196.0,0.002]
[1767780066215,3.67683152,3197.8,3196.0,0.002]
[1767780066528,3.67683152,3197.6,3196.0,3.76972053]
[1767780066828,3.67683152,3197.4,3196.0,3.76972053]
[1767780067115,3.715927,3197.3,3196.0,3.76972053]
[1767780067292,3.67683152,3197.1,3196.0,0.37897205]
[1767780067505,3.67683152,3197.1,3196.0,0.002]
[1767780070047,3.67683152,3197.1,3196.0,3.76972053]
[1767780070526,3.67683152,3197.1,3196.0,0.002]
[1767780072815,3.67683152,3197.1,3196.3,0.002]
[1767780073112,3.67783152,3196.8,3196.0,0.002]
[1767780073318,4.04561467,3196.8,3196.0,0.002]
[1767780076230,3.71593434,3196.7,3196.0,0.002]
[1767780077644,0.001,3196.8,3196.0,3.69940027]
[1767780078551,3.67683152,3197.2,3196.0,3.69940027]
[1767780078852,3.67683152,3197.9,3196.2,3.64717782]
[1767780079054,3.67683152,3197.7,3196.2,3.64717782]
[1767780079358,3.71592333,3197.6,3196.2,3.64717782]
[1767780081332,3.71592333,3197.6,3196.3,3.49733002]
[1767780081854,3.67683152,3197.6,3196.3,3.49733002]
[1767780082159,0.001,3198.2,3196.5,3.49733002]
[1767780082160,3.67683152,3198.1,3196.5,3.49733002]
[1767780082742,3.67683152,3198.1,3196.7,3.44764037]
[1767780084464,0.001,3198.2,3197.1,3.3486558]
[1767780084640,0.001,3198.2,3197.2,3.60817836]
[1767780085035,0.001,3197.8,3197.2,3.60817836]
[1767780085369,3.67683152,3198.5,3197.4,3.3486558]
[1767780085859,3.67683152,3199.6,3197.4,3.3486558]
[1767780086064,3.67683152,3199.4,3197.4,3.3486558]
[1767780086279,3.67683152,3199.2,3197.4,3.3486558]
[1767780086482,3.67683152,3199.0,3197.4,3.3486558]
[1767780086687,4.08749795,3198.9,3197.5,0.41039497]
[1767780086886,4.08749795,3198.9,3197.4,0.25952256]
[1767780087058,4.08749795,3198.9,3197.4,3.50975117]
[1767780087565,4.08749795,3198.9,3197.3,0.75529394]
[1767780087751,4.08749795,3198.9,3197.1,4.01819203]
[1767780087951,4.08749795,3198.9,3197.1,0.817]
[1767780088178,4.08749795,3198.9,3196.8,3.20319203]
[1767780088179,3.67683152,3198.7,3196.8,0.002]
[1767780088351,3.67683152,3198.3,3196.8,0.002]
[1767780088551,3.67683152,3198.1,3196.8,0.002]
[1767780088871,3.67683152,3197.9,3196.5,0.002]
[1767780089069,3.67683152,3197.7,3196.5,0.002]
[1767780089276,3.67683152,3197.5,3196.5,0.002]
[1767780089579,3.71592578,3197.4,3196.5,0.002]
[1767780091253,3.67683152,3197.4,3196.0,0.819]
[1767780091455,3.56733847,3197.4,3196.0,0.819]
[1767780091653,3.56733847,3197.4,3196.0,3.90062669]
[1767780091855,0.35673385,3197.3,3196.1,3.47168936]
[1767780092056,3.59116947,3197.3,3196.1,3.47168936]
[1767780093177,3.59116947,3197.3,3196.1,0.39006267]
[1767780093378,3.59116947,3197.3,3196.0,0.002]
[1767780096294,3.23443562,3197.3,3196.0,0.002]
[1767780096470,3.23443562,3197.3,3196.1,0.25952256]
[1767780097369,3.23443562,3197.3,3196.0,0.002]
[1767780098077,3.23443562,3197.3,3196.3,0.002]
[1767780099113,3.23443562,3197.3,3196.3,3.902]
[1767780099392,3.23443562,3197.3,3196.4,0.3902]
[1767780099597,3.23443562,3197.3,3196.3,0.002]
[1767780101187,3.27353232,3197.2,3196.3,0.002]
[1767780101996,3.23443562,3197.2,3196.3,0.002]
[1767780102179,3.23443562,3197.0,3196.3,0.002]
[1767780103395,3.23443562,3197.7,3196.3,0.002]
[1767780103693,3.59707099,3197.6,3196.3,0.002]
[1767780103999,3.59707099,3197.6,3196.0,0.002]
[1767780105778,3.59707099,3197.6,3195.2,2.57606987]
[1767780105779,5.10279997,3197.2,3195.2,0.002]
[1767780105985,3.23443562,3196.5,3195.2,0.002]
[1767780110027,3.23443562,3196.5,3195.5,0.002]
[1767780110819,3.23443562,3196.3,3195.5,0.002]
[1767780111179,3.23443562,3196.3,3195.2,0.002]
[1767780112877,3.23443562,3196.3,3195.0,0.002]
[1767780113091,3.23443562,3196.1,3195.0,0.002]
[1767780114177,3.27354578,3196.1,3195.0,0.002]
[1767780118104,3.27354578,3196.1,3194.6,0.002]
[1767780118710,3.27354578,3196.1,3194.7,1.91793456]
[1767780119030,3.27354578,3196.1,3194.7,0.002]
[1767780119228,3.27354578,3196.1,3194.6,0.002]
[1767780119229,0.12888243,3194.7,3194.6,0.002]
[1767780119826,0.12888243,3194.7,3194.4,0.82138028]
[1767780120197,0.12888243,3194.7,3194.4,0.66567458]
[1767780121230,2.61663945,3195.0,3194.4,0.66567458]
[1767780121416,0.03911261,3195.9,3194.4,0.66567458]
[1767780121417,2.61663945,3195.8,3194.4,0.66567458]
[1767780121610,2.61663945,3195.6,3194.4,2.45551663]
[1767780121804,2.72995412,3195.5,3194.4,2.45551663]
[1767780122125,2.72995412,3195.5,3194.4,0.66567458]
[1767780122295,2.72995412,3195.5,3194.7,0.002]
[1767780122496,2.72995412,3195.5,3194.4,0.66567458]
[1767780122692,2.96383203,3195.4,3194.4,0.66767458]
[1767780122919,2.72995657,3195.3,3194.4,0.66767458]
[1767780124008,2.69083662,3195.3,3194.4,0.66767458]
[1767780124206,0.27299541,3195.4,3194.4,0.66767458]
[1767780124601,0.001,3196.0,3194.4,0.66767458]
[1767780124602,2.69083662,3195.9,3194.4,0.66767458]
[1767780124802,2.72995045,3195.8,3194.4,0.66767458]
[1767780130129,2.72995045,3195.8,3194.4,3.79813521]
[1767780130807,2.72995045,3195.8,3194.4,0.66767458]
[1767780131230,2.72995045,3195.8,3194.4,3.7981406]
[1767780131421,2.72995045,3195.8,3194.5,0.37981406]
[1767780132148,0.001,3196.0,3194.6,0.25952256]
[1767780132941,0.001,3196.0,3194.8,0.25952256]
[1767780134908,0.001,3196.0,3195.0,0.25952256]
[1767780135117,0.001,3195.5,3195.0,0.25952256]
[1767780135321,0.001,3195.5,3195.1,0.65194994]
[1767780135839,0.03910649,3196.4,3195.2,0.25952256]
[1767780136038,2.72994311,3196.4,3195.2,0.25952256]
[1767780137842,2.72994311,3196.4,3195.1,3.78173508]
[1767780137843,2.72994311,3196.4,3195.1,0.65194994]
[1767780138140,2.72994311,3196.4,3194.7,0.26152256]
[1767780138443,2.69083662,3196.3,3195.2,3.12967426]
[1767780139517,2.69083662,3196.3,3195.1,0.25952256]
[1767780139719,2.69083662,3197.2,3195.1,0.25952256]
[1767780139920,2.69083662,3197.0,3195.1,0.25952256]
[1767780140237,2.69083662,3196.8,3195.3,0.25952256]
[1767780140414,2.69083662,3196.6,3195.3,0.25952256]
[1767780140747,2.69083662,3196.4,3195.3,0.25952256]
[1767780142443,2.69083662,3196.2,3195.3,0.25952256]
[1767780142650,2.69083662,3196.2,3195.2,0.65193035]
[1767780142837,2.69083662,3196.2,3195.0,0.25952256]
[1767780143039,2.69083662,3196.2,3195.2,3.12968174]
[1767780143335,2.69083662,3196.2,3194.9,3.38949096]
[1767780143336,2.69083662,3196.2,3195.3,3.12959092]
[1767780143853,2.69083662,3196.2,3195.1,0.25952256]
[1767780144723,2.69083662,3196.7,3195.1,0.25952256]
[1767780144924,2.69083662,3196.5,3195.3,0.25952256]
[1767780145125,2.72994311,3196.4,3195.4,3.9]
[1767780146155,0.27299382,3196.6,3195.3,0.25952256]
[1767780146350,2.96383044,3196.6,3195.3,3.38908172]
[1767780146721,2.96383044,3196.6,3195.5,0.002]
[1767780146952,2.69083662,3196.4,3195.5,0.002]
[1767780152232,2.36304631,3196.2,3195.5,0.002]
[1767780153263,2.36304631,3197.4,3195.5,0.002]
[1767780153449,2.40214057,3197.4,3195.5,0.002]
[1767780153654,2.36304631,3197.2,3195.5,0.002]
[1767780153850,2.36304631,3197.0,3195.5,0.002]
[1767780154062,2.36304631,3196.8,3195.5,0.002]
[1767780154372,2.36304631,3196.6,3195.5,0.002]
[1767780155874,2.36304631,3196.4,3195.5,0.002]
[1767780156038,2.36304631,3196.2,3195.5,0.002]
[1767780158152,2.36304631,3196.2,3195.5,3.902]
[1767780160662,0.001,3196.7,3195.1,0.002]
[1767780160663,5.49293784,3195.5,3195.1,0.002]
[1767780161580,3.12989153,3195.5,3195.1,0.002]
[1767780162463,2.57989153,3195.5,3195.1,0.002]
[1767780162942,2.57989153,3195.5,3195.2,0.31318905]
[1767780163146,2.57989153,3195.5,3195.2,4.21318905]
[1767780163449,2.45939875,3195.5,3195.2,4.21318905]
[1767780163650,2.36304631,3196.6,3195.2,4.21318905]
[1767780164853,2.36304631,3196.6,3195.3,0.25952256]
[1767780165131,2.36304631,3196.6,3195.4,0.76023711]
[1767780165788,2.36304631,3196.6,3195.5,0.29817559]
[1767780166154,2.36304631,3196.6,3195.4,0.76023711]
[1767780167382,2.36304631,3196.6,3195.4,0.25952256]
[1767780169000,2.36304631,3196.6,3195.3,0.25952256]
[1767780169178,2.36304631,3196.4,3195.3,0.25952256]
[1767780169997,2.36304631,3196.4,3195.2,3.3891955]
[1767780170382,2.36304631,3196.4,3195.6,0.002]
[1767780170578,2.36304631,3196.2,3195.6,0.002]
[1767780171077,1.86304631,3196.2,3195.6,0.002]
[1767780172676,0.001,3196.3,3195.6,0.002]
[1767780173778,0.001,3196.3,3195.6,0.31514698]
[1767780175004,0.001,3196.7,3195.7,0.33880088]
[1767780175605,0.001,3196.7,3195.9,0.31865478]
[1767780175985,0.001,3196.7,3196.0,0.31865478]
[1767780176905,0.001,3196.7,3196.0,0.30816435]
[1767780177204,0.001,3196.7,3196.1,0.34371709]
[1767780177404,0.001,3196.7,3196.1,0.62964673]
[1767780177796,0.03908448,3198.2,3196.2,0.83692964]
[1767780178105,2.36304631,3197.7,3196.2,0.83692964]
[1767780179805,2.36304631,3197.7,3196.4,0.82390843]
[1767780180142,2.36304631,3197.7,3196.6,0.82390843]
[1767780180904,2.36304631,3197.7,3196.5,0.39525259]
[1767780181213,2.29772487,3197.5,3196.5,0.39525259]
[1767780181508,2.29772487,3197.5,3196.2,3.89724048]
[1767780182412,2.29772487,3197.5,3196.3,0.75161849]
[1767780183575,2.22781288,3197.8,3196.3,0.75161849]
[1767780183781,2.22681288,3197.6,3196.3,0.75161849]
[1767780184004,2.22681288,3197.3,3196.3,0.75161849]
[1767780184205,2.22681288,3197.3,3196.4,0.38803163]
[1767780185014,2.22681288,3197.3,3196.3,0.75161849]
[1767780185314,0.001,3197.4,3196.5,0.67681911]
[1767780186818,0.001,3197.4,3196.6,0.65174146]
[1767780187014,2.22781288,3197.4,3196.3,3.78034694]
[1767780187400,2.22781288,3197.4,3196.4,3.12851784]
[1767780187658,2.22781288,3197.4,3196.5,0.37802593]
[1767780190315,2.22781288,3197.4,3196.0,0.57609649]
[1767780190528,2.22781288,3197.4,3196.2,3.9]
[1767780191024,2.22781288,3197.4,3195.9,0.002]
[1767780192122,2.26690714,3197.4,3195.6,0.002]
[1767780192326,2.57558029,3197.4,3195.6,0.002]
[1767780192620,2.22681288,3197.2,3195.6,0.50186473]
[1767780193010,2.22681288,3197.1,3195.6,0.50186473]
[1767780194731,2.22681288,3197.1,3195.8,0.44877163]
[1767780196821,2.22681288,3197.1,3196.0,0.3974113]
[1767780197320,0.57041018,3197.2,3196.2,0.37164743]
[1767780197636,0.001,3197.1,3196.2,0.37164743]
[1767780200212,0.001,3197.1,3196.3,0.67019599]
[1767780201957,2.22781288,3197.1,3196.3,0.67019599]
[1767780202132,2.22781288,3197.1,3196.3,0.31995899]
[1767780202536,2.22781288,3197.1,3196.1,0.002]
[1767780202846,2.22781288,3197.1,3196.1,3.13080864]
[1767780203044,2.22781288,3197.1,3196.1,3.37282149]
[1767780203345,2.22781288,3197.1,3196.2,3.34466099]
[1767780203540,0.001,3197.1,3196.4,0.21597548]
[1767780204119,0.001,3197.1,3196.4,3.34440461]
[1767780204318,0.001,3197.1,3196.5,0.21597548]
[1767780204646,0.001,3197.4,3196.7,0.1898606]
[1767780204945,0.001,3197.4,3196.9,0.1898606]
[1767780205446,0.001,3197.4,3196.8,0.40898606]
[1767780205620,0.001,3197.4,3196.8,0.16370056]
[1767780206023,2.22781288,3197.8,3196.8,0.16370056]
[1767780206222,0.03907715,3198.8,3197.0,0.18921462]
[1767780206223,2.22681288,3198.8,3197.0,0.18921462]
[1767780206477,2.22681288,3198.8,3197.1,0.1729696]
[1767780206829,2.22681288,3198.8,3197.0,3.9]
[1767780206830,2.22681288,3198.8,3197.3,0.1729696]
[1767780207035,2.22681288,3198.8,3197.5,0.1729696]
[1767780207681,2.22681288,3198.8,3197.4,0.40729696]
[1767780207682,0.682974,3198.9,3197.7,0.14717726]
[1767780208134,0.682974,3198.9,3197.9,0.14717726]
[1767780209655,0.682974,3198.9,3198.1,0.09450769]
[1767780209859,2.22681288,3199.7,3198.6,0.09450769]
[1767780210038,0.001,3199.9,3198.8,0.09450769]
[1767780210239,0.001,3199.9,3198.7,3.12627004]
[1767780210240,0.001,3199.9,3199.0,0.09450769]
[1767780210665,0.77605305,3201.1,3199.3,0.06811352]
[1767780210666,2.22681288,3200.7,3199.3,0.06811352]
[1767780211474,2.22681288,3200.7,3199.6,0.05239994]
[1767780212379,1.79571294,3200.5,3199.1,0.817]
[1767780212555,1.79571294,3200.3,3199.2,3.125708]
[1767780212744,1.79571294,3200.3,3199.3,0.3942708]
[1767780212943,1.79571294,3200.3,3199.1,0.817]
[1767780213389,1.79571294,3200.1,3199.1,0.74790716]
[1767780213741,1.79571294,3200.1,3199.1,3.87370082]
[1767780213962,1.79571294,3200.1,3199.3,3.12568125]
[1767780214175,1.79571294,3200.1,3199.2,3.12576884]
[1767780214475,1.79571294,3200.1,3199.3,0.3873676]
[1767780214775,1.79571294,3201.0,3199.3,0.3873676]
[1767780216279,1.79571294,3201.0,3199.4,6.25117208]
[1767780216953,1.79571294,3201.0,3199.4,9.84029534]
[1767780217354,1.79571294,3201.0,3199.5,0.72305978]
[1767780217563,0.77605305,3201.1,3199.7,0.25952256]
[1767780218177,0.77605305,3201.1,3199.9,0.25952256]
[1767780218491,0.77605305,3201.1,3200.1,0.25952256]
[1767780219298,0.001,3202.3,3200.7,0.25952256]
[1767780219505,0.001,3202.3,3201.1,0.25952256]
[1767780219666,1.79671294,3202.3,3200.0,12.5]
[1767780219861,1.79571294,3202.1,3200.1,0.817]
[1767780220467,0.001,3202.7,3201.2,5.33798038]
[1767780220663,0.001,3202.7,3201.3,6.24746196]
[1767780220895,1.79671294,3202.7,3201.4,0.6247462]
[1767780221395,1.79571294,3203.3,3201.5,0.7613514]